Department,Entity,Supplier Name,Payment Date,Transaction Number,Expence Area,Expense Type,Amount (Exc VAT)
FCOS,FCOS,OROSTREAM INTERNATIONAL CONTRACTS LTD,16/03/2018,288416,Secure Global Services ,Building Maintenance,"44,628.00"
FCOS,FCOS,TRL TECHNOLOGY LIMITED,16/03/2018,294025,Secure Global Services ,Comms Equip-Maintenance,"30,540.00"
FCOS,FCOS,IRG ADVISORS LLP (T/A ODGERS INTERIM),05/03/2018,295066,Secure Global Services ,Contingent Labour,"27,023.33"
FCOS,FCOS,INSIGHT DIRECT (UK) LTD,15/03/2018,295615,Global Digital Technology,Licenses,"40,768.35"
FCOS,FCOS,RADIOCOMS SYSTEMS LTD,05/03/2018,296153,Secure Global Services ,IS Hardware,"34,762.75"
FCOS,FCOS,IRG ADVISORS LLP (T/A ODGERS INTERIM),05/03/2018,296307,Secure Global Services ,Contingent Labour,"26,916.95"
FCOS,FCOS,MORSON INTERNATIONAL,13/03/2018,296506,Secure Global Services ,Professional Services,"262,047.74"
FCOS,FCOS,EVEREST AIRCON,14/03/2018,297393,Secure Global Services ,Building Works,"74,499.00"
FCOS,FCOS,ENGIE LIMITED,23/03/2018,297516,Secure Global Services ,Building Maintenance,"73,132.52"
FCOS,FCOS,WYG GROUP,21/03/2018,297543,Secure Global Services ,Building Works,"29,000.00"
FCOS,FCOS,ADBLU INTERNATIONAL LTD,07/03/2018,297759,Secure Global Services ,Building Works,"28,188.00"
FCOS,FCOS,E.G. ROWE ENGINEERING LIMITED,05/03/2018,297779,Secure Global Services ,Building Works,"32,333.75"
FCOS,FCOS,RINALDI CONSTRUCTION COMPANY INC,05/03/2018,297914,Secure Global Services ,Building Maintenance,"36,285.04"
FCOS,FCOS,INTERSERVE FM LTD,27/03/2018,297924,Corporate,IS Hardware Maintenance,"127,949.28"
FCOS,FCOS,IRG ADVISORS LLP (T/A ODGERS INTERIM),07/03/2018,298106,Secure Global Services ,Contingent Labour,"29,892.16"
FCOS,FCOS,CONCEPT BUILDING SERVICES SOUTHERN LTD,07/03/2018,298118,Secure Global Services ,Building Works,"94,358.69"
FCOS,FCOS,CONCEPT BUILDING SERVICES SOUTHERN LTD,07/03/2018,298119,Secure Global Services ,Building Works,"88,055.87"
FCOS,FCOS,CONCEPT BUILDING SERVICES SOUTHERN LTD,09/03/2018,298120,Secure Global Services ,Professional Services,"74,856.30"
FCOS,FCOS,INSIGHT DIRECT (UK) LTD,15/03/2018,298227,Global Digital Technology,Licenses,"55,713.67"
FCOS,FCOS,LILLEKER BROTHERS NIGERIA,21/03/2018,298228,Secure Global Services ,Building Works,"226,016.00"
FCOS,FCOS,MORSON INTERNATIONAL,13/03/2018,298235,Secure Global Services ,Professional Services,"266,606.60"
FCOS,FCOS,CONCEPT BUILDING SERVICES SOUTHERN LTD,08/03/2018,298240,Secure Global Services ,Building Maintenance,"98,015.71"
FCOS,FCOS,HEWLETT CONSTUCTION LLC,08/03/2018,298247,Secure Global Services ,Building Works,"29,022.33"
FCOS,FCOS,CHINA INTERNATIONAL TRADING,09/03/2018,298343,Secure Global Services ,Building Works,"42,450.00"
FCOS,FCOS,BEYANO AB (DPORGANIZER),13/03/2018,298361,Corporate,IS Software,"41,799.35"
FCOS,FCOS,HELLMANN WORLDWIDE LOGISTICS LTD,21/03/2018,298364,Secure Global Services ,Freight & Transport,"531,706.23"
FCOS,FCOS,GEMALTO UK LTD FORMERLY 3M UNITED KINGDOM PLC,12/03/2018,298365,Global Digital Technology,IS Software,"79,000.00"
FCOS,FCOS,HELLMANN WORLDWIDE LOGISTICS LTD,21/03/2018,298366,Secure Global Services ,Freight & Transport,"272,794.74"
FCOS,FCOS,RINALDI CONSTRUCTION COMPANY INC,09/03/2018,298373,Secure Global Services ,Building Maintenance,"50,785.90"
FCOS,FCOS,LA INTERNATIONAL COMPUTER CONSULTANTS LTD,12/03/2018,298587,Secure Global Services ,Professional Services,"37,947.27"
FCOS,FCOS,LA INTERNATIONAL COMPUTER CONSULTANTS LTD,12/03/2018,298588,Secure Global Services ,Professional Services,"87,145.81"
FCOS,FCOS,WORKSPACE TECHNOLOGY LTD,16/03/2018,298707,Global Digital Technology,IS Hardware,"40,986.72"
FCOS,FCOS,CORPORATE PROJECT SOLUTIONS LTD,29/03/2018,298733,Secure Global Services ,Work Packages,"27,900.00"
FCOS,FCOS,CORPORATE PROJECT SOLUTIONS LTD,29/03/2018,298734,Secure Global Services ,Work Packages,"36,630.00"
FCOS,FCOS,ENGIE LIMITED,13/03/2018,298739,Secure Global Services ,Building Maintenance,"272,767.14"
FCOS,FCOS,TRL TECHNOLOGY LIMITED,15/03/2018,298863,Secure Global Services ,Security Equipment Maintenance,"96,960.00"
FCOS,FCOS,TIME MATTERS NETHERLANDS .B.V.,15/03/2018,298878,Secure Global Services ,Freight & Transport,"77,487.88"
FCOS,FCOS,AECOM LIMITED,23/03/2018,298953,Secure Global Services ,Building Maintenance,"27,965.33"
FCOS,FCOS,IMPULSE ENGINEERING LTD,14/03/2018,298954,Secure Global Services ,Building Works,"36,743.19"
FCOS,FCOS,RADIOCOMS SYSTEMS LTD,29/03/2018,298970,Secure Global Services ,IS Hardware,"132,023.28"
FCOS,FCOS,RADIOCOMS SYSTEMS LTD,29/03/2018,299104,Secure Global Services ,IS Hardware,"31,264.20"
FCOS,FCOS,RADIOCOMS SYSTEMS LTD,29/03/2018,299107,Secure Global Services ,Security Equipment,"40,147.08"
FCOS,FCOS,SHETLAND SECURITY SERVICES LTD,15/03/2018,299113,Secure Global Services ,Professional Services,"27,925.33"
FCOS,FCOS,SERVICENOW UK LTD,16/03/2018,299145,Global Digital Technology,IS Software,"231,612.00"
FCOS,FCOS,BRODY FORBES LTD,19/03/2018,299290,Secure Global Services ,Professional Services,"98,422.50"
FCOS,FCOS,BRODY FORBES LTD,19/03/2018,299292,Secure Global Services ,Professional Services,"110,570.00"
FCOS,FCOS,CONCEPT BUILDING SERVICES SOUTHERN LTD,19/03/2018,299302,Secure Global Services ,Professional Services,"86,536.74"
FCOS,FCOS,CONCEPT BUILDING SERVICES SOUTHERN LTD,19/03/2018,299305,Secure Global Services ,Building Maintenance,"76,497.60"
FCOS,FCOS,CONCEPT BUILDING SERVICES SOUTHERN LTD,19/03/2018,299306,Secure Global Services ,Building Maintenance,"80,149.52"
FCOS,FCOS,KOIZA INTERNATIONAL LTD,21/03/2018,299579,Secure Global Services ,Building Works,"40,541.99"
FCOS,FCOS,SVGC LIMITED,22/03/2018,299854,Global Digital Technology,Professional Services,"47,600.00"
FCOS,FCOS,COGENT ELECTRICAL SERVICES LTD,26/03/2018,300081,Secure Global Services ,Building Works,"39,209.55"
FCOS,FCOS,CONCEPT BUILDING SERVICES SOUTHERN LTD,26/03/2018,300088,Secure Global Services ,Building Works,"91,672.68"
FCOS,FCOS,IRG ADVISORS LLP (T/A ODGERS INTERIM),29/03/2018,300223,Secure Global Services ,Contingent Labour,"30,744.99"
FCOS,FCOS,ELADIO QUINTERO,27/03/2018,300236,Secure Global Services ,Building Works,"39,588.54"
FCOS,FCOS,ENGIE LIMITED,27/03/2018,300248,Secure Global Services ,Building Maintenance,"52,428.70"
FCOS,FCOS,FOUR SEASONS INTERNATIONAL TRAVEL SERVICE HONG KONG CO LTD,28/03/2018,300263,Secure Global Services ,QM's Costs,"34,516.90"
FCOS,FCOS,SOFTWARE BOX LTD,29/03/2018,300380,Secure Global Services ,Security Equipment,"31,091.93"
FCOS,FCOS,ADBLU INTERNATIONAL LTD,29/03/2018,300404,Secure Global Services ,Building Works,"39,934.27"
FCOS,FCOS,HELLMANN WORLDWIDE LOGISTICS LTD,28/03/2018,300416,Secure Global Services ,Freight & Transport,"138,880.33"
FCOS,FCOS,BRIAN CURRIE MILTON KEYNES LTD,28/03/2018,300571,Corporate,FCOS Vehicles - Capital,"75,700.00"
FCOS,FCOS,MOTT MACDONALD LTD,28/03/2018,300583,Secure Global Services ,Building Maintenance,"36,750.00"
FCOS,FCOS,TIER-3 PTY LTD,29/03/2018,300611,Global Digital Technology,IS Software,"33,260.00"
FCOS,FCOS,IMPULSE ENGINEERING LTD,29/03/2018,300821,Secure Global Services ,Professional Services,"33,705.13"
FCOS,FCOS,COGENT ELECTRICAL SERVICES LTD,29/03/2018,300847,Secure Global Services ,Building Works,"44,625.00"
FCOS,FCOS,IMPULSE ENGINEERING LTD,29/03/2018,300849,Secure Global Services ,Building Works,"72,730.48"
FCOS,FCOS,LA INTERNATIONAL COMPUTER CONSULTANTS LTD,29/03/2018,300861,Secure Global Services ,Contingent Labour,"26,992.76"
